fUSD/lending_fUSD_20251028
["ID","MTS","AMOUNT","RATE_DAILY","PERIOD"]
[392550228,1761643842386,-151.0,0.0003138,31]
[392550229,1761643842395,-470.33987484,0.0003138,3]
[392550230,1761643842405,-301.734197,0.0003138,31]
[392550231,1761643842414,-250.522573,0.0003138,31]
[392550232,1761643842424,-1979.29,0.0003138,3]
[392550233,1761643842433,-500.0,0.0003138,3]
[392550234,1761643842443,-500.0,0.0003138,3]
[392550235,1761643842452,-500.0,0.0003138,3]
[392550236,1761643842461,-189.1767868,0.0003138,3]
[392550237,1761643842471,-500.0,0.0003138,3]
[392550238,1761643842480,-500.0,0.0003138,3]
[392550239,1761643842490,-150.53438062,0.0003138,3]
[392550240,1761643842499,-300.0,0.0003138,2]
[392550241,1761643842508,-500.0,0.0003138,3]
[392550242,1761643842518,-519.49268852,0.0003138,3]
[392550243,1761643842527,-626.19613825,0.0003138,3]
[392550244,1761643842537,-600.21577315,0.0003138,3]
[392550245,1761643842546,-504.61824101,0.0003138,3]
[392550246,1761643842555,-564.46119097,0.0003138,3]
[392550247,1761643842564,-549.28942493,0.0003138,3]
[392550248,1761643842573,-534.66790722,0.0003138,3]
[392550249,1761643842583,-500.0,0.0003138,3]
[392550250,1761643842592,-513.91319883,0.0003138,3]
[392550251,1761643842602,-566.14472945,0.0003138,3]
[392550252,1761643842613,-521.05162502,0.0003138,3]
[392550253,1761643842623,-500.0,0.0003138,3]
[392550254,1761643842635,-500.0,0.0003138,3]
[392550255,1761643842644,-539.04117786,0.0003138,3]
[392550256,1761643842654,-500.0,0.0003138,3]
[392550257,1761643842664,-500.0,0.0003138,3]
[392550258,1761643842673,-515.13609976,0.0003138,3]
[392550259,1761643842683,-500.0,0.0003138,3]
[392550260,1761643842692,-500.0,0.0003138,3]
[392550261,1761643842702,-500.0,0.0003138,3]
[392550262,1761643842712,-509.72965778,0.0003138,3]
[392550263,1761643842721,-500.68523488,0.0003138,3]
[392550264,1761643842731,-500.0,0.0003138,3]
[392550266,1761643842740,-500.0,0.0003138,3]
[392550267,1761643842749,-151.61100353,0.0003138,3]
[392550268,1761643842759,-500.0,0.0003138,3]
[392550269,1761643842768,-563.79848473,0.0003138,3]
[392550270,1761643842777,-1058.03,0.0003138,3]
[392550271,1761643842788,-500.0,0.0003138,3]
[392550272,1761643842798,-172.52252934,0.0003138,3]
[392550273,1761643842809,-500.0,0.0003138,3]
[392550274,1761643842819,-500.0,0.0003138,3]
[392550275,1761643842828,-500.0,0.0003138,3]
[392550276,1761643842838,-164.58563095,0.0003138,3]
[392550278,1761643842847,-590.40941669,0.0003138,3]
[392550279,1761643842859,-966.56,0.0003138,3]
[392550280,1761643842868,-168.42103564,0.0003138,3]
[392550281,1761643842878,-500.0,0.0003138,3]
[392550282,1761643842888,-500.0,0.0003138,3]
[392550283,1761643842899,-500.0,0.0003138,3]
[392550284,1761643843119,-500.0,0.0003138,3]
[392550285,1761643843129,-500.0,0.0003138,3]
[392550286,1761643843139,-500.0,0.0003138,3]
[392550287,1761643843148,-500.0,0.0003138,3]
[392550288,1761643843158,-500.0,0.0003138,3]
[392550289,1761643843168,-500.0,0.0003138,3]
[392550290,1761643843179,-500.0,0.0003138,3]
[392550291,1761643843189,-344.45897777,0.0003138,3]
[392550292,1761643843199,-500.0,0.0003138,3]
[392550293,1761643843208,-502.50332385,0.0003138,3]
[392550294,1761643843217,-516.61079894,0.0003138,3]
[392550295,1761643843228,-456.85570613,0.0003138,3]
[392550296,1761643843238,-500.0,0.0003138,3]
[392550297,1761643843247,-500.0,0.0003138,3]
[392550298,1761643843262,-500.0,0.0003138,3]
[392550299,1761643843272,-500.0,0.0003138,2]
[392550300,1761643843281,-500.0,0.0003138,3]
[392550301,1761643843290,-500.0,0.0003138,3]
[392550302,1761643843299,-592.28,0.0003138,2]
[392550303,1761643843309,-516.02383814,0.0003138,3]
[392550304,1761643843318,-500.0,0.0003138,3]
[392550305,1761643843327,-517.56,0.0003138,3]
[392550306,1761643843336,-500.0,0.0003138,3]
[392550307,1761643843346,-151.0,0.0003138,31]
[392550308,1761643843356,-151.0,0.0003138,31]
[392550309,1761643843365,-151.0,0.0003138,31]
[392550310,1761643843374,-500.0,0.0003138,3]
[392550311,1761643843383,-648.53,0.0003138,3]
[392550312,1761643843392,-562.75,0.0003138,2]
[392550313,1761643843403,-519.31203789,0.0003138,3]
[392550314,1761643843412,-500.0,0.0003138,3]
[392550315,1761643843422,-300.0,0.0003138,3]
[392550316,1761643843431,-526.38143139,0.0003138,3]
[392550317,1761643843441,-561.31507982,0.0003138,3]
[392550318,1761643843451,-513.14368561,0.0003138,3]
[392550319,1761643843460,-500.0,0.0003138,3]
[392550320,1761643843469,-617.16843005,0.0003138,3]
[392550321,1761643843479,-500.0,0.0003138,3]
[392550322,1761643843488,-500.0,0.0003138,3]
[392550323,1761643843497,-474.22429786,0.0003138,3]
[392550324,1761643843507,-407.03736717,0.0003138,3]
[392550325,1761643843517,-399.32036121,0.0003138,3]
[392550326,1761643843526,-500.0,0.0003138,3]
[392550327,1761643843536,-546.17,0.0003138,3]
[392550328,1761643843546,-282.95925311,0.0003138,3]
[392550329,1761643843555,-533.77775336,0.0003138,3]
[392550330,1761643843565,-580.10013706,0.0003138,3]
[392550331,1761643843574,-500.0,0.0003138,3]
[392550332,1761643843585,-500.0,0.0003138,3]
[392550333,1761643843595,-540.71354882,0.0003138,3]
[392550334,1761643843604,-152.392689,0.0003138,3]
[392550335,1761643843616,-530.26465666,0.0003138,3]
[392550336,1761643843628,-644.10789161,0.0003138,3]
[392550337,1761643843641,-500.0,0.0003138,3]
[392550338,1761643843650,-528.28319865,0.0003138,3]
[392550339,1761643843660,-532.98588446,0.0003138,3]
[392550340,1761643843671,-303.11161577,0.0003138,3]
[392550341,1761643843680,-500.0,0.0003138,3]
[392550342,1761643843690,-504.95283492,0.0003138,3]
[392550343,1761643843699,-619.45526654,0.0003138,3]
[392550344,1761643843708,-812.74,0.0003138,3]
[392550345,1761643843720,-564.69318786,0.0003138,3]
[392550346,1761643843729,-500.0,0.0003138,3]
[392550347,1761643843739,-500.0,0.0003138,3]
[392550348,1761643843749,-527.95744862,0.0003138,3]
[392550349,1761643843759,-500.0,0.0003138,3]
[392550350,1761643843768,-500.0,0.0003138,3]
[392550351,1761643843778,-555.40508521,0.0003138,3]
[392550352,1761643843787,-507.43423492,0.0003138,3]
[392550353,1761643843796,-500.0,0.0003138,3]
[392550354,1761643843806,-500.0,0.0003138,3]
[392550355,1761643843816,-548.25,0.0003138,3]
[392550356,1761643843825,-418.16148344,0.0003138,3]
[392550357,1761643843834,-463.40391412,0.0003138,3]
[392550358,1761643843844,-554.89720313,0.0003138,3]
[392550359,1761643843853,-443.44519792,0.0003138,3]
[392550360,1761643843863,-423.36314278,0.0003138,3]
[392550361,1761643843872,-500.0,0.0003138,3]
[392550362,1761643843881,-506.02529161,0.0003138,3]
[392550363,1761643843890,-500.0,0.0003138,3]
[392550364,1761643843899,-501.90510277,0.0003138,3]
[392550365,1761643843909,-500.0,0.0003138,3]
[392550366,1761643843918,-490.23002873,0.0003138,3]
[392550367,1761643843928,-500.0,0.0003138,3]
[392550368,1761643843937,-500.0,0.0003138,3]
[392550369,1761643843946,-505.59071258,0.0003138,3]
[392550370,1761643843956,-500.0,0.0003138,3]
[392550371,1761643843965,-559.17078058,0.0003138,3]
[392550372,1761643843974,-526.39832195,0.0003138,3]
[392550373,1761643843983,-565.13275298,0.0003138,3]
[392550374,1761643843992,-500.0,0.0003138,3]
[392550375,1761643844001,-500.0,0.0003138,3]
[392550376,1761643844011,-501.408978,0.0003138,3]
[392550377,1761643844020,-500.0,0.0003138,3]
[392550378,1761643844029,-500.0,0.0003138,3]
[392550379,1761643844038,-547.55950475,0.0003138,3]
[392550380,1761643844048,-500.0,0.0003138,3]
[392550381,1761643844057,-583.40961605,0.0003138,3]
[392550382,1761643844066,-151.0,0.0003138,31]
[392550383,1761643844076,-500.0,0.0003138,3]
[392550384,1761643844085,-151.0,0.0003138,31]
[392550385,1761643844094,-474.48005414,0.0003138,3]
[392550386,1761643844103,-603.3963649,0.0003138,3]
[392550387,1761643844112,-522.27227614,0.0003138,3]
[392550388,1761643844121,-572.67631445,0.0003138,3]
[392550389,1761643844131,-500.0,0.0003138,3]
[392550390,1761643844140,-314.41252528,0.0003138,3]
[392550391,1761643844207,-500.0,0.0003138,3]
[392550392,1761643844216,-531.86757053,0.0003138,3]
[392550393,1761643844226,-500.0,0.0003138,3]
[392550394,1761643844235,-515.89468935,0.0003138,3]
[392550395,1761643844244,-500.0,0.0003138,3]
[392550396,1761643844253,-516.66577465,0.0003138,3]
[392550397,1761643844263,-503.10544385,0.0003138,3]
[392550398,1761643844272,-500.0,0.0003138,3]
[392550399,1761643844280,-327.38808315,0.0003138,3]
[392550400,1761643844289,-500.0,0.0003138,3]
[392550401,1761643844298,-500.0,0.0003138,3]
[392550402,1761643844307,-512.01903107,0.0003138,3]
[392550403,1761643844316,-500.0,0.0003138,3]
[392550404,1761643844325,-500.0,0.0003138,3]
[392550405,1761643844334,-500.0,0.0003138,3]
[392550406,1761643844343,-467.51465724,0.0003138,3]
[392550407,1761643844352,-509.89166165,0.0003138,3]
[392550408,1761643844362,-440.04074925,0.0003138,3]
[392550409,1761643844373,-415.90165583,0.0003138,3]
[392550410,1761643844383,-627.61,0.0003138,3]
[392550411,1761643844391,-930.09,0.0003138,3]
[392550412,1761643844400,-501.14753234,0.0003138,3]
[392550413,1761643844410,-500.0,0.0003138,3]
[392550414,1761643844420,-605.04214563,0.0003138,3]
[392550415,1761643844430,-500.0,0.0003138,3]
[392550416,1761643844439,-882.76,0.0003138,3]
[392550417,1761643844449,-574.24167322,0.0003138,3]
[392550418,1761643844458,-500.0,0.0003138,3]
[392550419,1761643844467,-500.0,0.0003138,3]
[392550420,1761643844476,-500.0,0.0003138,3]
[392550421,1761643844485,-500.0,0.0003138,3]
[392550422,1761643844494,-500.0,0.0003138,3]
[392550423,1761643844504,-525.54517064,0.0003138,3]
[392550424,1761643844514,-415.17488527,0.0003138,3]
[392550425,1761643844524,-10994.2074142,0.0003138,3]
[392550426,1761643844533,-310.88853256,0.00031381,2]
[392550427,1761643844543,-2500.0,0.00031386,7]
[392550428,1761643844552,-300.0,0.00031387,10]
[392550429,1761643844562,-500.0,0.00031387,3]
[392550430,1761643844570,-500.0,0.00031387,2]
[392550431,1761643844580,-275.23252449,0.00031387,3]
[392550432,1761643844589,-158.76885159,0.00031387,2]
[392550433,1761643844598,-500.0,0.00031387,3]
[392550434,1761643844607,-500.0,0.00031387,3]
[392550435,1761643844617,-164.92901901,0.00031387,3]
[392550436,1761643844626,-500.0,0.00031387,3]
[392550437,1761643844634,-500.0,0.00031387,3]
[392550438,1761643844644,-500.0,0.00031387,3]
[392550439,1761643844653,-500.0,0.00031387,3]
[392550440,1761643844662,-500.0,0.00031387,3]
[392550441,1761643844672,-500.0,0.00031387,3]
[392550442,1761643844681,-500.0,0.00031387,3]
[392550443,1761643844690,-500.0,0.00031387,3]
[392550444,1761643844701,-500.0,0.00031387,3]
[392550445,1761643844710,-754.16,0.00031387,3]
[392550446,1761643844719,-500.0,0.00031387,3]
[392550447,1761643844728,-500.0,0.00031387,3]
[392550448,1761643844738,-500.0,0.00031387,3]
[392550449,1761643844748,-500.0,0.00031387,3]
[392550450,1761643844757,-3907.64,0.00031387,3]
[392550451,1761643844767,-500.0,0.00031387,3]
[392550452,1761643844776,-575.32284647,0.00031387,3]
[392550453,1761643844786,-500.0,0.00031387,3]
[392550454,1761643844795,-1723.86,0.00031387,3]
[392550455,1761643844804,-216.06488249,0.00031387,3]
[392550456,1761643844813,-500.0,0.00031387,3]
[392550457,1761643844823,-500.0,0.00031387,3]
[392550458,1761643844832,-500.0,0.00031387,3]
[392550459,1761643844842,-500.0,0.00031387,3]
[392550460,1761643844851,-500.0,0.00031387,3]
[392550461,1761643844861,-500.0,0.00031387,3]
[392550462,1761643844870,-578.20206374,0.00031387,3]
[392550463,1761643844879,-500.0,0.00031387,3]
[392550464,1761643844888,-500.0,0.00031387,2]
[392550465,1761643844898,-242.26667736,0.00031387,3]
[392550466,1761643844908,-500.0,0.00031387,3]
[392550467,1761643844918,-500.0,0.00031387,2]
[392550468,1761643844928,-306.19770042,0.00031387,2]
[392550469,1761643844937,-500.0,0.00031387,3]
[392550470,1761643844947,-323.26811402,0.00031387,3]
[392550471,1761643844957,-500.0,0.00031387,3]
[392550472,1761643844967,-500.0,0.00031387,3]
[392550473,1761643844977,-300.0,0.00031387,2]
[392550474,1761643844991,-500.0,0.00031387,3]
[392550475,1761643845000,-505.73855401,0.00031387,3]
[392550476,1761643845010,-500.0,0.00031387,3]
[392550477,1761643845019,-202.03655512,0.00031387,3]
[392550478,1761643845029,-500.0,0.00031387,3]
[392550479,1761643845038,-1045.76,0.00031387,3]
[392550480,1761643845047,-500.0,0.00031387,3]
[392550481,1761643845056,-500.0,0.00031387,3]
[392550482,1761643845066,-500.0,0.00031387,2]
[392550483,1761643845075,-500.0,0.00031387,3]
[392550484,1761643845084,-218.27732059,0.00031387,3]
[392550485,1761643845093,-500.0,0.00031387,3]
[392550486,1761643845102,-500.0,0.00031387,3]
[392550487,1761643845113,-500.0,0.00031387,2]
[392550488,1761643845122,-500.0,0.00031387,3]
[392550489,1761643845130,-500.0,0.00031387,3]
[392550490,1761643845140,-500.0,0.00031387,3]
[392550491,1761643845149,-218.13655515,0.00031387,3]
[392550492,1761643845159,-324.74836077,0.00031387,3]
[392550493,1761643845168,-500.0,0.00031387,3]
[392550494,1761643845178,-312.94805114,0.00031387,3]
[392550495,1761643845188,-500.0,0.00031387,3]
[392550496,1761643845197,-501.86924194,0.00031387,3]
[392550497,1761643845206,-500.0,0.00031387,3]
[392550498,1761643845215,-523.91129785,0.00031387,3]
[392550499,1761643845224,-500.0,0.00031387,3]
[392550500,1761643845234,-177.33757495,0.00031387,3]
[392550501,1761643845249,-500.0,0.00031387,3]
[392550502,1761643845258,-526.11361645,0.00031387,3]
[392550503,1761643845268,-500.0,0.00031387,3]
[392550504,1761643845277,-500.0,0.00031387,3]
[392550505,1761643845286,-500.0,0.00031387,3]
[392550506,1761643845295,-500.0,0.00031387,3]
[392550507,1761643845305,-500.0,0.00031387,3]
[392550508,1761643845315,-500.0,0.00031387,3]
[392550509,1761643845324,-425.90729616,0.00031387,3]
[392550510,1761643845334,-500.0,0.00031387,3]
[392550511,1761643845343,-2163.24,0.00031387,3]
[392550512,1761643845352,-502.11316845,0.00031387,3]
[392550513,1761643845362,-3322.59,0.00031387,2]
[392550514,1761643845371,-728.23,0.00031387,3]
[392550515,1761643845381,-500.0,0.00031387,3]
[392550516,1761643845390,-172.17418462,0.00031387,3]
[392550517,1761643845400,-620.0,0.00031387,3]
[392550518,1761643845410,-500.0,0.00031387,3]
[392550519,1761643845419,-500.0,0.00031387,3]
[392550520,1761643845428,-461.88678304,0.00031387,3]
[392550521,1761643845438,-500.0,0.00031388,3]
[392550522,1761643845447,-470.11721007,0.00031388,3]
[392550524,1761643845457,-510.2745064,0.00031388,3]
[392550526,1761643845466,-536.5707371,0.00031388,3]
[392550528,1761643845475,-507.75552539,0.00031388,3]
[392550530,1761643845487,-555.48759621,0.00031388,3]
[392550532,1761643845496,-508.86692379,0.00031388,3]
[392550534,1761643845506,-633.50078951,0.00031388,3]
[392550536,1761643845515,-500.0,0.00031388,3]
[392550538,1761643845524,-423.6327284,0.00031388,3]
[392550540,1761643845534,-514.56470928,0.00031388,3]
[392550542,1761643845543,-518.21567413,0.00031388,3]
[392550544,1761643845553,-500.0,0.00031388,3]
[392550546,1761643845562,-500.0,0.00031388,3]
[392550548,1761643845572,-151.0,0.00031388,31]
[392550550,1761643845582,-10994.2074142,0.00031389,3]
[392550552,1761643845591,-151.0,0.00031389,2]
[392550554,1761643845600,-191.39154758,0.00031389,2]
[392550556,1761643845610,-500.0,0.00031389,3]
[392550558,1761643845619,-500.0,0.00031389,3]
[392550560,1761643845630,-528.32351556,0.00031389,3]
[392550562,1761643845643,-509.97586662,0.00031389,3]
[392550564,1761643845652,-514.42463678,0.00031389,3]
[392550566,1761643845662,-500.0,0.00031389,3]
[392550568,1761643845671,-198.9035517,0.00031389,3]
[392550570,1761643845681,-500.0,0.00031389,3]
[392550572,1761643845690,-500.0,0.00031389,3]
[392550574,1761643845700,-500.0,0.00031389,3]
[392550576,1761643845709,-1011.83999065,0.0003139,3]
[392550578,1761643845719,-2800.0,0.0003139,5]
[392550580,1761643845729,-500.0,0.0003139,15]
[392550581,1761643845740,-200.0,0.0003139,2]
[392550583,1761643845749,-166.0,0.0003139,120]
[392550585,1761643845759,-41248.13020629,0.0003139,3]
[392550593,1761643845945,-500.0,0.00030136,3]
[392550594,1761643845955,-583.81940273,0.0003139,3]
[392550595,1761643845966,-301.40522561,0.0003139,3]
[392550598,1761643846098,-302.05006371,0.0003041,3]
[392550601,1761643846193,-197.94993629,0.0003041,3]
[392550603,1761643846202,-500.0,0.00030684,3]
[392550605,1761643846212,-500.0,0.00030958,3]
[392550607,1761643846223,-500.0,0.00031232,3]
[392550609,1761643846233,-151.0,0.00031239,31]
[392550611,1761643846243,-151.0,0.00031349,31]
[392550613,1761643846252,-151.0,0.0003137,31]
[392550615,1761643846262,-151.0,0.0003138,31]
[392550617,1761643846271,-100791.34154937,0.0003139,3]
[392550619,1761643846281,-12286.97819139,0.00031392,2]
[392550621,1761643846290,-173.38,0.00031394,2]
[392550623,1761643846300,-2500.0,0.00031394,7]
[392550624,1761643846309,-1396.98064195,0.00031399,15]
[392550625,1761643846319,-500.0,0.00031399,3]
[392550626,1761643846330,-500.0,0.00031399,3]
[392550627,1761643846339,-500.0,0.00031399,3]
[392550628,1761643846349,-500.0,0.00031399,3]
[392550629,1761643846358,-630.78,0.00031399,3]
[392550630,1761643846368,-512.49221784,0.00031399,3]
[392550631,1761643846377,-559.39200343,0.00031399,3]
[392550632,1761643846388,-500.0,0.00031399,3]
[392550633,1761643846398,-500.0,0.00031399,3]
[392550634,1761643846407,-500.0,0.00031399,3]
[392550635,1761643846416,-500.0,0.00031399,3]
[392550636,1761643846426,-500.0,0.00031399,3]
[392550637,1761643846436,-500.0,0.00031399,3]
[392550638,1761643846445,-500.0,0.00031399,3]
[392550639,1761643846455,-500.0,0.00031399,3]
[392550640,1761643846467,-500.0,0.00031399,3]
[392550641,1761643846476,-1000.0,0.00031399,3]
[392550642,1761643846486,-500.0,0.00031399,3]
[392550643,1761643846496,-343.04368678,0.00031399,3]
[392550644,1761643846505,-1440720.01995947,0.000314,2]
[392550645,1761643846517,-229975.88443451,0.000314,2]
[392550646,1761643846725,-150.0,0.00030815,2]
[392550647,1761643846736,-150.0,0.00030815,2]
[392550648,1761643846746,-293.84138919,0.00031088,2]
[392550649,1761643846756,-1001.52321346,0.000314,2]
[392550650,1761643846768,-2118.03993297,0.000314,2]
[392550651,1761643846780,-2192.0,0.000314,2]
[392550652,1761643846792,-381891.45100713,0.000314,2]
[392550653,1761643846808,-126232.34624128,0.000314,2]
[392550654,1761643846817,-207.395912,0.000314,31]
[392550655,1761643846827,-386.28,0.000314,30]
[392550656,1761643846837,-2500.0,0.00031403,7]
[392550657,1761643846846,-777.28086781,0.00031407,2]
[392550658,1761643846855,-310.88853256,0.00031407,2]
[392550659,1761643846865,-12286.97819139,0.00031407,2]
[392550660,1761643846875,-12721.7905094,0.00031407,2]
[392550661,1761643846884,-5516.50122618,0.00031407,2]
[392550662,1761643846895,-1063.587525,0.00031407,2]
[392550663,1761643846907,-468.65005224,0.00031407,2]
[392550763,1761644227907,-325.66973461,0.00014999,2]
[392550765,1761644260268,694.0,0.0002,30]
[392550810,1761644697151,291.88,0.00013699,2]
[392550812,1761644797155,-666.91601487,0.00016399,2]
[392550813,1761644797175,-546.23473909,0.00016438,2]
[392550814,1761644797195,-195.0,0.00018039,2]
[392550815,1761644797215,-159.49158777,0.00019178,2]
[392550816,1761644797238,-291.88,0.00020187,2]
[392550817,1761644797258,-629.2706065,0.00021978,2]
[392550818,1761644797278,-300.0,0.00021998,2]
[392550819,1761644797297,-500.0,0.00021999,2]
[392550820,1761644797319,-500.0,0.00021999,2]
[392550821,1761644797338,-198.9035517,0.00021999,2]
[392550822,1761644797360,-500.0,0.00021999,2]
[392550823,1761644797381,-236.72059436,0.00021999,2]
[392550832,1761645031745,-166.28987381,0.0001918,2]
[392550833,1761645031755,-263.27940564,0.00021999,2]
[392550834,1761645031764,-235.0947623,0.00021999,2]
[392550835,1761645031777,-509.97586662,0.00022953,2]
[392550836,1761645031787,-514.42463678,0.00022953,2]
[392550837,1761645031796,-559.93545485,0.00022953,2]
[392550855,1761645037496,-18.26660889,0.00022953,2]
[392550856,1761645037505,-500.0,0.00023902,2]
[392550857,1761645037518,-500.0,0.00023902,2]
[392550858,1761645037528,-500.0,0.00023902,2]
[392550859,1761645037537,-218.93331556,0.00023902,2]
[392550860,1761645037548,-281.06668444,0.00023902,2]
[392550861,1761645037557,-190.82323287,0.00023902,2]
[392550862,1761645037566,-500.0,0.00023902,2]
[392550863,1761645037578,-500.0,0.00023902,2]
[392550864,1761645037588,-500.0,0.00023902,2]
[392550865,1761645037597,-235.57048539,0.00023902,2]
[392550866,1761645037607,-500.0,0.00023902,2]
[392550867,1761645037616,-500.0,0.00023902,2]
[392550868,1761645037626,-500.0,0.00023902,2]
[392550869,1761645037637,-500.0,0.00023902,2]
[392550870,1761645037647,-500.0,0.00023902,2]
[392550871,1761645037657,-500.0,0.00023902,2]
[392550872,1761645037667,-500.0,0.00023902,2]
[392550873,1761645037677,-500.0,0.00023902,2]
[392550874,1761645037688,-500.0,0.00023902,2]
[392550875,1761645037699,-500.0,0.00023902,2]
[392550876,1761645037708,-500.0,0.00023902,2]
[392550877,1761645037718,-500.0,0.00023902,2]
[392550878,1761645037727,-500.0,0.00023902,2]
[392550879,1761645037736,-500.0,0.00023902,2]
[392550880,1761645037746,-500.0,0.00023902,2]
[392550881,1761645037755,-500.0,0.00023902,2]
[392550882,1761645037768,-500.0,0.00023902,2]
[392550883,1761645037777,-52.10242974,0.00023902,2]
[392550884,1761645037789,-447.89757026,0.00023902,2]
[392550885,1761645037798,-500.0,0.00023902,2]
[392550886,1761645037808,-500.0,0.00023902,2]
[392550887,1761645037818,-500.0,0.00023902,2]
[392550889,1761645037827,-563.45721747,0.00023902,2]
[392550890,1761645037836,-500.0,0.00023902,2]
[392550891,1761645037845,-500.0,0.00023902,2]
[392550892,1761645037855,-500.0,0.00023902,2]
[392550893,1761645037864,-500.0,0.00023902,2]
[392550894,1761645037873,-500.0,0.00023902,2]
[392550895,1761645037882,-500.0,0.00023902,2]
[392550896,1761645037891,-500.0,0.00023902,2]
[392550897,1761645037900,-500.0,0.00023902,2]
[392550898,1761645037910,-500.0,0.00023902,2]
[392550899,1761645037919,-500.0,0.00023902,2]
[392550901,1761645037929,-203.08398513,0.00024199,2]
[392550902,1761645037938,-1670.58181078,0.00024199,2]
[392550903,1761645037947,-476.4830027,0.000244,2]
[392550904,1761645037959,-150.0,0.00026489,2]
[392550905,1761645037969,-291.88,0.00026676,2]
[392550906,1761645037978,-157.43,0.00027696,2]
[392550907,1761645037988,-249.92,0.00028616,2]
[392550908,1761645037997,-406.15752495,0.00029099,2]
[392550909,1761645038007,-7434.59,0.00029139,2]
[392550910,1761645038017,-1480.4,0.00029244,2]
[392550911,1761645038027,-168.0,0.00029562,2]
[392550912,1761645038037,-150.72,0.00029589,2]
[392550913,1761645038046,-623.66936137,0.00029765,2]
[392550914,1761645038056,-854.91822413,0.000298,7]
[392550915,1761645038066,-150.72,0.00029808,2]
[392550916,1761645038076,-3758.45380694,0.00029851,2]
[392550917,1761645038087,-202.73156402,0.00029889,2]
[392550918,1761645038096,-183.65086827,0.0002989,2]
[392550919,1761645038106,-12524.36500679,0.0002989,2]
[392550920,1761645038117,-2690.34601013,0.0002989,2]
[392550921,1761645038142,-479.81815261,0.0002989,2]
[392550923,1761645038223,-500.0,0.0002989,2]
[392550924,1761645038235,-272.36141139,0.0002989,2]
[392550925,1761645038248,-407.46142615,0.0002989,2]
[392550926,1761645038259,-11566.7952551,0.00029894,2]
[392550927,1761645038271,-957.56975168,0.00029894,2]
[392550928,1761645038280,-4349.98700021,0.00029894,2]
[392550929,1761645038289,-12524.36500678,0.00029898,2]
[392550930,1761645038299,-4349.98700021,0.00029898,2]
[392550931,1761645038307,-2724.64436197,0.000299,2]
[392550932,1761645038386,-5756.54931097,0.000299,2]
[392550933,1761645038396,-5285.48614268,0.00029902,2]
[392550934,1761645038539,220.0,0.0002,10]
[392550938,1761645039656,-572.338,0.00029902,2]
[392550939,1761645039707,-2597.11375217,0.00029902,2]
[392550940,1761645039719,-650.0,0.00029902,2]
[392550941,1761645039814,-2428.86618871,0.00029902,2]
[392550942,1761645039826,-990.56092322,0.00029902,2]
[392550943,1761645039835,-4349.98700021,0.00029902,2]
[392550944,1761645039844,-2341.21497022,0.00029906,2]
[392550945,1761645039855,-809.03373517,0.00029906,2]
[392550962,1761645042846,-7908.99964774,0.000299,2]
[392550963,1761645042857,-9374.11630139,0.00029906,2]
[392550964,1761645042869,-4349.98700021,0.00029906,2]
[392550965,1761645042880,-12524.36500678,0.0002991,2]
[392550966,1761645042890,-4349.98700021,0.0002991,2]
[392550967,1761645042900,-12524.36500678,0.00029914,2]
[392550968,1761645042910,-4349.98700021,0.00029914,2]
[392550969,1761645042920,-12524.36500678,0.00029918,2]
[392550970,1761645042931,-4349.98700021,0.00029918,2]
[392550971,1761645042941,-12524.36500678,0.00029922,2]
[392550972,1761645042950,-4349.98700021,0.00029922,2]
[392550973,1761645042959,-160.53722179,0.00029926,2]
[392550974,1761645042968,-863.55303108,0.00029926,2]